fUST/lending_fUST_20250808
["ID","MTS","AMOUNT","RATE_DAILY","PERIOD"]
[377866372,1754585462344,-151.0,0.000249,7]
[377866373,1754585462353,-1012.263324,0.000249,7]
[377866374,1754585462363,-1012.263324,0.000249,7]
[377866375,1754585462371,-164.624851,0.000249,7]
[377866376,1754585462382,-164.624851,0.000249,7]
[377866377,1754585462391,-487.066672,0.000249,2]
[377866378,1754585462401,-151.0,0.000249,7]
[377866379,1754585462411,-151.0,0.000249,7]
[377866380,1754585462420,-271.750061,0.000249,7]
[377866381,1754585462430,-271.750061,0.000249,7]
[377866382,1754585462439,-250.634318,0.000249,7]
[377866383,1754585462449,-250.634318,0.000249,7]
[377866384,1754585462459,-151.0,0.000249,7]
[377866385,1754585462468,-239.192816,0.000249,7]
[377866386,1754585462478,-239.192816,0.000249,7]
[377866387,1754585462487,-1405.251648,0.000249,7]
[377866388,1754585462497,-1405.251648,0.000249,7]
[377866389,1754585462507,-608.297843,0.000249,7]
[377866390,1754585462518,-608.297843,0.000249,7]
[377866391,1754585462527,-151.0,0.000249,7]
[377866392,1754585462536,-165279.45303524,0.000249,2]
[377866393,1754585462795,-163.81959449,0.0002165,2]
[377866394,1754585462804,-134.6407977,0.00021684,2]
[377866395,1754585462815,-29.17879679,0.00021684,2]
[377866396,1754585462824,-163.81959449,0.00021717,2]
[377866397,1754585462834,-460.0,0.00021917,2]
[377866398,1754585462843,-460.0,0.00021917,2]
[377866399,1754585462856,-408.00160872,0.00022191,2]
[377866400,1754585462868,-51.99839128,0.00022191,2]
[377866401,1754585462877,-460.0,0.00022191,2]
[377866402,1754585462889,-460.0,0.00022465,2]
[377866403,1754585462899,-503.64386285,0.00022465,2]
[377866404,1754585462908,-464.37921717,0.00022739,2]
[377866405,1754585462918,-478.28889859,0.00022739,2]
[377866406,1754585462927,-747.822841,0.00023013,7]
[377866407,1754585462936,-820.56678915,0.00023013,2]
[377866408,1754585462948,-1925.98321085,0.00023013,2]
[377866409,1754585462958,-300.0,0.00023048,2]
[377866410,1754585462967,-300.0,0.00023048,2]
[377866411,1754585462976,-300.0,0.00023048,2]
[377866412,1754585462986,-747.822841,0.00023287,7]
[377866413,1754585462995,-2746.55,0.00023287,2]
[377866414,1754585463004,-2746.55,0.00023561,2]
[377866415,1754585463014,-747.822841,0.00023835,7]
[377866416,1754585463024,-747.822841,0.00024109,7]
[377866417,1754585463034,-747.822841,0.00024383,7]
[377866418,1754585463043,-46589.62542515,0.000249,2]
[377866419,1754585463055,-7660.03184426,0.000249,2]
[377866420,1754585463365,-301.53775025,0.00021917,2]
[377866421,1754585463381,-158.46224975,0.00021917,2]
[377866422,1754585463395,-460.0,0.00021917,2]
[377866423,1754585463405,-460.0,0.00021917,2]
[377866424,1754585463415,-460.0,0.00021917,2]
[377866426,1754585525507,639.72439533,0.00021053,2]
[377866427,1754585525532,15000.0,0.00021053,2]
[377866428,1754585525556,15000.0,0.00021053,2]
[377866429,1754585525578,15000.0,0.00021053,2]
[377866430,1754585525600,15000.0,0.00021053,2]
[377866431,1754585525622,2827.86291807,0.00021053,2]
[377866432,1754585525774,225.50387037,0.00020968,2]
[377866433,1754585534651,5000.0,0.00021481,2]
[377866434,1754585550513,5000.0,0.00021481,2]
[377866436,1754585566343,1946.63321156,0.00021481,2]
[377866437,1754585566366,3053.36678844,0.00021481,2]
[377866438,1754585583202,5000.0,0.00021481,2]
[377866439,1754585603279,5000.0,0.00021481,2]
[377866460,1754585676704,1688.25915715,0.00019178,2]
[377866467,1754585834367,258.37405441,0.00020614,2]
[377866468,1754585834388,443.57744559,0.00020614,2]
[377866471,1754585910375,193.59073541,0.00021506,2]
[377866472,1754585946820,9806.40926459,0.00020716,2]
[377866473,1754585946845,10000.0,0.00020716,2]
[377866474,1754585946867,5093.59073541,0.00020716,2]
[377866480,1754585961645,3428.65495618,0.00021506,2]
[377866481,1754585966108,308.52621004,0.00021506,2]
[377866482,1754585966718,400.0,0.0003013,120]
[377866483,1754585977393,1169.22809837,0.00021506,2]
[377866484,1754585977417,528.003749,0.00021506,2]
[377866485,1754586009425,193.59073539,0.00021506,2]
[377866488,1754586108649,193.59073539,0.00021506,2]
[377866489,1754586123727,200.0,0.000215,2]
[377866495,1754586243198,666.0,0.00020614,2]
[377866499,1754586245928,8218.81478022,0.00021,2]
[377866500,1754586245954,6860.57924121,0.00021,2]
[377866501,1754586256547,3139.42075879,0.00021506,2]
[377866502,1754586256569,1860.57924121,0.00021506,2]
[377866503,1754586271917,5000.0,0.00021506,2]
[377866504,1754586272121,195.70728444,0.000215,2]
[377866505,1754586285646,526.553071,0.00013699,2]
[377866506,1754586285890,526.553071,0.00020187,2]
[377866507,1754586287201,1890.60733235,0.00021506,2]
[377866508,1754586287223,3109.39266765,0.00021506,2]
[377866511,1754586303713,5000.0,0.00021506,2]
[377866521,1754586410777,180.372548,0.00020612,2]
[377866525,1754586411848,1459.330234,0.00020612,2]
[377866535,1754586442109,250.90455035,0.00020612,2]
[377866536,1754586442136,5379.97015545,0.00020612,2]
[377866541,1754586517682,4620.02984455,0.00020612,2]
[377866542,1754586517705,910.20866375,0.00020612,2]
[377866544,1754586604202,2995.0,0.00028,30]
[377866631,1754586637365,-1200.0,0.00021572,2]
[377866633,1754586637374,-300.0,0.00021572,2]
[377866635,1754586637383,-255.0,0.00021572,2]
[377866637,1754586637393,-1131.703095,0.00021572,2]
[377866646,1754586637469,-68.296905,0.00021572,2]
[377866649,1754586637478,-1111.14174483,0.00021573,2]
[377866651,1754586637487,-739.51520882,0.00021573,2]
[377866664,1754586637670,-1563.93811151,0.000216,5]
[377866665,1754586637680,-1173.95,0.00021607,3]
[377866666,1754586637689,-586.97,0.00021607,3]
[377866667,1754586637698,-293.49,0.00021607,3]
[377866668,1754586637708,-115.23719322,0.00021607,3]
[377866706,1754586638526,-765.25280678,0.00021607,3]
[377866707,1754586638535,-820.20000026,0.00021607,2]
[377866709,1754586638545,-500.0,0.00021616,2]
[377866711,1754586638554,-500.0,0.00021616,2]
[377866713,1754586638563,-500.0,0.00021616,2]
[377866715,1754586638574,-500.0,0.00021616,2]
[377866717,1754586638583,-301.90269915,0.00021616,2]
[377866719,1754586638594,-500.0,0.00021616,2]
[377866721,1754586638604,-500.0,0.00021616,2]
[377866723,1754586638613,-500.0,0.00021616,2]
[377866725,1754586638623,-500.0,0.00021616,2]
[377866727,1754586638632,-335930.02398181,0.00021617,2]
[377866728,1754586638648,-820.20000026,0.00021617,2]
[377866987,1754586642161,562.0894449,0.00019517,2]
[377868229,1754586765173,5000.0,0.00019178,2]
[377868230,1754586818316,350.97575,0.00020693,2]
[377868231,1754586864744,3545.09271774,0.00032044,120]
[377868233,1754586901842,1831.94539159,0.00021417,2]
[377868234,1754586904147,159.0,0.00022343,120]
[377868235,1754586907303,1344.78074976,0.00020581,2]
[377868236,1754586907328,8655.21925024,0.00020581,2]
[377868237,1754586943682,374.7262966,0.00019517,2]
[377868238,1754586947773,970.05445316,0.00021417,2]
[377868239,1754586947796,5786.37388372,0.00021417,2]
[377868240,1754586957840,5000.0,0.00021481,2]
[377868241,1754586973630,3770.04867069,0.00021481,2]
[377868242,1754586973657,1229.95132931,0.00021481,2]
[377868243,1754586989726,5000.0,0.00021481,2]
[377868246,1754587110756,8770.04867069,0.00020515,2]
[377868247,1754587110778,15000.0,0.00020515,2]
[377868248,1754587110801,1129.95132931,0.00020515,2]
[377868252,1754587125394,5000.0,0.00021481,2]
[377868253,1754587142223,5000.0,0.00021481,2]
[377868254,1754587157553,3870.04867069,0.00021481,2]
[377868255,1754587157576,1129.95132931,0.00021481,2]
[377868256,1754587172811,5000.0,0.00021481,2]
[377868257,1754587188115,5000.0,0.00021481,2]
[377868258,1754587203551,3870.04867069,0.00021481,2]
[377868259,1754587203577,1129.95132931,0.00021481,2]
[377868260,1754587219458,5000.0,0.00021481,2]
[377868261,1754587234694,5000.0,0.00021481,2]
[377868262,1754587242024,1465.55631328,0.00021417,2]
[377868263,1754587245328,249.81753107,0.00019517,2]
[377868264,1754587249921,2154.67482634,0.00021481,2]
[377868265,1754587249944,2845.32517366,0.00021481,2]
[377868266,1754587254715,666.0,0.00020514,2]
[377868267,1754587266394,5000.0,0.00021481,2]
[377868268,1754587318232,4504.28555792,0.00021417,2]
[377868269,1754587332483,443.993915,0.00020862,2]
[377868270,1754587332899,389.008816,0.00020866,2]
[377868271,1754587333257,330.78716308,0.00020867,2]
[377868272,1754587333578,165.39358154,0.00020868,2]
[377868280,1754587362242,180.372548,0.00020513,2]
[377868284,1754587458424,474.8332448,0.00021417,2]
[377868285,1754587458448,2528.02379382,0.00021417,2]
[377868286,1754587461276,534.537038,0.00013699,2]
[377868287,1754587461497,534.537038,0.00020187,2]
[377868291,1754587510791,166.86406192,0.00021281,2]
[377868309,1754587546582,166.54502071,0.00019381,2]
[377868311,1754587583707,1600.3051826,0.00021417,2]
[377868312,1754587635083,215.61513834,0.00020866,2]
[377868375,1754587677010,5014.7322743,0.000301,120]
[377868376,1754587678354,3185.3383751,0.00020511,2]
[377868383,1754587694159,153.0,0.00027997,30]
[377868384,1754587694823,579.259526,0.00027997,30]
[377868385,1754587694864,153.0,0.00027997,30]
[377868392,1754587722312,301.999999,0.0002,120]
[377868393,1754587722821,1543.5774879,0.00020677,2]
[377868397,1754587748714,2001.9046924,0.00021417,2]
[377868398,1754587753688,153.0,0.00027997,30]
[377868399,1754587753718,579.259526,0.00027997,30]
[377868400,1754587753764,153.0,0.00027997,30]
[377868403,1754587814018,153.0,0.00027997,30]
[377868404,1754587814092,293.0794966,0.00027925,30]
[377868405,1754587814866,579.259526,0.00027997,30]
[377868406,1754587817594,153.0,0.00027997,30]
[377868407,1754587827042,150.0,0.0002687,30]
[377868476,1754587832988,-151.0,0.000215,4]
[377868478,1754587832998,-684.8,0.00021507,3]
[377868480,1754587833008,-342.4,0.00021507,3]
[377868482,1754587833018,-171.2,0.00021507,3]
[377868484,1754587833028,-181.95570986,0.00021507,3]
[377868486,1754587833040,-331.66429014,0.00021507,3]
[377868488,1754587833050,-300.0,0.00021508,2]
[377868490,1754587833060,-1200.0,0.00021508,2]
[377868492,1754587833071,-300.0,0.00021509,2]
[377868494,1754587833081,-300.0,0.00021509,2]
[377868497,1754587833091,-300.0,0.00021509,2]
[377868499,1754587833102,-300.0,0.00021509,2]
[377868502,1754587833113,-500.0,0.0002151,2]
[377868505,1754587833123,-357.6099415,0.0002151,2]
[377868507,1754587833133,-500.0,0.0002151,2]
[377868511,1754587833144,-500.0,0.0002151,2]
[377868513,1754587833154,-500.0,0.0002151,2]
[377868515,1754587833164,-500.0,0.0002151,2]
[377868517,1754587833173,-1200.0,0.0002151,2]
[377868519,1754587833183,-2260.71377225,0.00021511,2]
[377868526,1754587833246,-500.0,0.0002151,2]
[377868528,1754587833256,-500.0,0.0002151,2]
[377868529,1754587833266,-500.0,0.0002151,2]
[377868530,1754587833275,-500.0,0.0002151,2]
[377868531,1754587833284,-500.0,0.0002151,2]
[377868532,1754587833294,-500.0,0.0002151,2]
[377868534,1754587833303,-500.0,0.0002151,2]
[377868536,1754587833313,-500.0,0.0002151,2]
[377868538,1754587833323,-18874.11532274,0.00021511,2]
[377868540,1754587833332,-500.0,0.00021516,2]
[377868542,1754587833342,-275.75811981,0.00021516,2]
[377868544,1754587833353,-500.0,0.00021516,2]
[377868546,1754587833362,-500.0,0.00021516,2]
[377868548,1754587833372,-500.0,0.00021516,2]
[377868550,1754587833382,-245.73229142,0.00021516,2]
[377868552,1754587833391,-500.0,0.00021516,2]
[377868554,1754587833402,-500.0,0.00021516,2]
[377868556,1754587833412,-500.0,0.00021516,2]
[377868558,1754587833421,-500.0,0.00021516,2]
[377868560,1754587833431,-42620.22797103,0.00021517,2]
[377868696,1754587838692,-164.33151602,0.0002151,2]
[377868697,1754587838706,-500.0,0.0002151,2]
[377868698,1754587838718,-500.0,0.0002151,2]
[377868699,1754587838727,-252.85926984,0.0002151,2]
[377868700,1754587838737,-269.58341398,0.0002151,2]
[377868701,1754587838763,-88.82486964,0.0002151,2]
[377868702,1754587838773,-500.0,0.0002151,2]
[377868703,1754587838782,-468.17513036,0.0002151,2]
[377868704,1754587838795,-31.82486964,0.0002151,2]
[377868705,1754587838804,-500.0,0.0002151,2]
[377868706,1754587838814,-500.0,0.0002151,2]
[377868707,1754587838823,-500.0,0.0002151,2]
[377868708,1754587838998,-500.0,0.0002151,2]
[377868709,1754587839008,-500.0,0.0002151,2]
[377868710,1754587839017,-500.0,0.0002151,2]
[377868711,1754587839027,-500.0,0.0002151,2]
[377868712,1754587839036,-390.80577201,0.0002151,2]
[377868713,1754587839045,-500.0,0.0002151,2]
[377868714,1754587839056,-500.0,0.0002151,2]
[377868715,1754587839065,-144.06145956,0.0002151,2]
[377868716,1754587839079,-314.01932405,0.0002151,2]
[377868742,1754587843627,-845.81,0.00021507,10]
[377868743,1754587843638,-131.7555967,0.0002151,2]
[377868744,1754587843648,-227.70226408,0.0002151,2]
[377868745,1754587843659,-272.29773592,0.0002151,2]
[377868746,1754587843668,-180.77654117,0.0002151,2]
[377868747,1754587843737,-309.32313761,0.0002151,2]
[377868748,1754587843747,-191.76014914,0.0002151,2]
[377868749,1754587843758,-303.81059378,0.0002151,2]
[377868759,1754587846400,-160.0,0.00021509,2]
[377868760,1754587846409,-4.42925708,0.0002151,2]
[377868761,1754587846418,-327379.77202897,0.00021517,2]
[377868762,1754587846429,-200.0,0.00021517,10]
[377868763,1754587846438,-200.0,0.00021517,10]
[377868764,1754587846447,-200.0,0.00021517,10]
[377868765,1754587846456,-200.0,0.00021517,10]
[377868767,1754587846466,-200.0,0.00021517,10]
[377868769,1754587846475,-200.0,0.00021517,10]
[377868771,1754587846484,-200.0,0.00021517,10]
[377868773,1754587846493,-236.46206706,0.00021573,2]
[377868775,1754587846501,-192.43736016,0.00021573,2]
[377868777,1754587846511,-500.0,0.00021573,2]
[377868779,1754587846519,-500.0,0.00021573,2]
[377868781,1754587846529,-615.51237071,0.00021573,2]
[377868783,1754587846538,-552.22024188,0.00021573,2]
[377868785,1754587846547,-500.0,0.00021573,2]
[377868786,1754587846556,-500.0,0.00021573,2]
[377868787,1754587846565,-500.0,0.00021573,2]
[377868788,1754587846575,-500.0,0.00021573,2]
[377868789,1754587846584,-500.0,0.00021573,2]
[377868790,1754587846593,-513.54100745,0.00021573,2]
[377868791,1754587846602,-491.36391457,0.00021573,2]
[377868792,1754587846612,-500.0,0.00021573,2]
[377868793,1754587846622,-500.0,0.00021573,2]
[377868794,1754587846635,-500.0,0.00021573,2]
[377868795,1754587846645,-500.0,0.00021573,2]
[377868796,1754587846654,-510.72260156,0.00021573,2]
[377868797,1754587846663,-507.22421426,0.00021573,2]
[377868798,1754587846674,-240.15173798,0.00021573,2]
[377868799,1754587846683,-500.0,0.00021573,2]
[377868800,1754587846692,-500.0,0.00021573,2]
[377868801,1754587846704,-500.0,0.00021573,2]
[377868802,1754587846714,-500.0,0.00021573,2]
[377868803,1754587846723,-151.0,0.000216,3]
[377868804,1754587846733,-1000.0,0.00021617,2]
[377868805,1754587846743,-1000.0,0.00021617,2]
[377868806,1754587846752,-1000.0,0.00021617,2]
[377868807,1754587846762,-451.24660781,0.00021617,2]
[377868808,1754587846771,-151.0,0.000217,4]
[377868809,1754587846780,-151.0,0.0002178,2]
[377868810,1754587846789,-151.0,0.0002178,2]
[377868811,1754587846798,-151.0,0.0002178,2]
[377868812,1754587846807,-151.0,0.0002178,2]
[377868813,1754587846817,-283.8854429,0.0002178,2]
[377868814,1754587846827,-151.0,0.0002178,2]
[377868815,1754587846836,-300.0,0.0002178,2]
[377868816,1754587846845,-300.0,0.0002178,2]
[377868817,1754587846854,-151.0,0.0002178,2]
[377868818,1754587846865,-151.0,0.0002178,2]
[377868819,1754587846875,-300.0,0.0002178,2]
[377868820,1754587846884,-151.0,0.0002178,2]
[377868821,1754587846894,-151.0,0.0002178,2]
[377868822,1754587846903,-300.0,0.0002178,2]
[377868824,1754587846913,-164.42201597,0.0002178,2]
[377868826,1754587846922,-151.0,0.0002178,2]
[377868828,1754587846932,-300.0,0.0002178,2]
[377868829,1754587846941,-151.0,0.0002178,2]
[377868830,1754587846951,-151.0,0.0002178,2]
[377868831,1754587846960,-300.0,0.0002178,2]
[377868832,1754587846969,-151.0,0.0002178,2]
[377868833,1754587846978,-151.0,0.0002178,2]
[377868834,1754587846989,-300.0,0.0002178,2]
[377868835,1754587846998,-151.0,0.0002178,2]
[377868836,1754587847008,-2183.31810187,0.0002178,2]
[377868837,1754587847018,-300.0,0.0002178,2]
[377868838,1754587847027,-151.0,0.0002178,2]
[377868839,1754587847036,-151.0,0.0002178,2]
[377868840,1754587847045,-300.0,0.0002178,2]
[377868841,1754587847055,-300.0,0.0002178,2]
[377868842,1754587847064,-151.0,0.0002178,2]
[377868843,1754587847073,-300.0,0.0002178,2]
[377868844,1754587847083,-151.0,0.0002178,2]
[377868845,1754587847093,-151.0,0.0002178,2]
[377868846,1754587847103,-151.0,0.0002178,2]
[377868847,1754587847113,-151.0,0.0002178,2]
[377868848,1754587847121,-151.0,0.0002178,2]
[377868849,1754587847131,-277.03810151,0.0002178,2]
[377868850,1754587847140,-300.0,0.0002178,2]
[377868851,1754587847150,-151.0,0.0002178,2]
[377868852,1754587847160,-151.0,0.0002178,2]
[377868853,1754587847170,-300.0,0.0002178,2]
[377868854,1754587847182,-151.0,0.0002178,2]
[377868855,1754587847191,-151.0,0.0002178,2]
[377868856,1754587847201,-300.0,0.0002178,2]
[377868857,1754587847210,-151.0,0.0002178,2]
[377868858,1754587847219,-151.0,0.0002178,2]
[377868859,1754587847229,-300.0,0.0002178,2]
[377868860,1754587847238,-151.0,0.0002178,2]
[377868861,1754587847248,-151.0,0.0002178,2]
[377868862,1754587847258,-151.0,0.0002178,2]
[377868863,1754587847267,-300.0,0.0002178,2]
[377868864,1754587847277,-151.0,0.0002178,2]
[377868865,1754587847287,-300.0,0.0002178,2]
[377868866,1754587847296,-151.0,0.0002178,2]
[377868867,1754587847306,-151.0,0.0002178,2]
[377868868,1754587847315,-300.0,0.0002178,2]
[377868869,1754587847324,-151.0,0.0002178,2]
[377868870,1754587847334,-203.82073721,0.0002178,2]
[377868871,1754587847343,-151.0,0.0002178,2]
[377868872,1754587847352,-300.0,0.0002178,2]
[377868873,1754587847363,-300.0,0.0002178,2]
[377868874,1754587847372,-300.0,0.0002178,2]
[377868875,1754587847381,-300.0,0.0002178,2]
[377868876,1754587847390,-151.0,0.0002178,2]
[377868877,1754587847399,-151.0,0.0002178,2]
[377868878,1754587847408,-151.0,0.0002178,2]
[377868879,1754587847417,-151.0,0.0002178,2]
[377868880,1754587847427,-151.0,0.0002178,2]
[377868881,1754587847436,-250.0,0.0002178,2]
[377868882,1754587847445,-151.0,0.0002178,2]
[377868883,1754587847454,-250.0,0.0002178,2]
[377868884,1754587847463,-151.0,0.0002178,2]
[377868885,1754587847473,-250.0,0.0002178,2]
[377868886,1754587847482,-151.0,0.0002178,2]
[377868887,1754587847491,-151.0,0.0002178,2]
[377868888,1754587847501,-250.0,0.0002178,2]
[377868889,1754587847510,-151.0,0.0002178,2]
[377868890,1754587847521,-250.0,0.0002178,2]
[377868891,1754587847530,-151.0,0.0002178,2]
[377868892,1754587847540,-358.47097131,0.0002178,2]
[377868893,1754587847549,-500.0,0.0002179,2]
[377868894,1754587847559,-151.0,0.000218,4]
[377868895,1754587847568,-19228.97878596,0.00021817,3]
[377868896,1754587847577,-2264.10087164,0.00021835,2]
[377868897,1754587847586,-2347.87260389,0.0002189,2]
[377868898,1754587847596,-151.0,0.000219,4]
[377868899,1754587847605,-6603.78363136,0.00021917,2]
[377868900,1754587847614,-460.0,0.00021917,2]
[377868901,1754587847625,-460.0,0.00021917,2]
[377868902,1754587847637,-460.0,0.00021917,2]
[377868903,1754587847646,-460.0,0.00021917,2]
[377868904,1754587847655,-460.0,0.00021917,2]
[377868905,1754587847664,-281.33073495,0.00021917,2]
[377868906,1754587847675,-486.70015507,0.00021917,2]
[377868907,1754587847684,-460.0,0.00021917,2]
[377868908,1754587847694,-460.0,0.00021917,2]
[377868909,1754587847705,-460.0,0.00021917,2]
[377868910,1754587847715,-202.14396922,0.00021917,2]
[377868911,1754587847724,-460.0,0.00021917,2]
[377868912,1754587847734,-460.0,0.00021917,2]
[377868913,1754587847743,-461.51566471,0.00021917,2]
[377868914,1754587847752,-460.0,0.00021917,2]
[377868915,1754587847762,-460.0,0.00021917,2]
[377868916,1754587847771,-460.0,0.00021917,2]
[377868917,1754587847781,-460.0,0.00021917,2]
[377868918,1754587847790,-411.39908246,0.00021917,2]
[377868919,1754587847800,-460.0,0.00021917,2]
[377868920,1754587847810,-460.0,0.00021917,2]
[377868921,1754587847819,-460.0,0.00021917,2]
[377868922,1754587847828,-460.0,0.00021917,2]
[377868923,1754587847838,-460.0,0.00021917,2]
[377868924,1754587847847,-460.0,0.00021917,2]
[377868925,1754587847857,-460.0,0.00021917,2]
[377868926,1754587847867,-460.0,0.00021917,2]
[377868927,1754587847877,-460.0,0.00021917,2]
[377868928,1754587847888,-460.0,0.00021917,2]
[377868929,1754587847898,-460.94536757,0.00021917,2]
[377868930,1754587847908,-460.0,0.00021917,2]
[377868931,1754587847918,-460.0,0.00021917,2]
[377868932,1754587847927,-460.0,0.00021917,2]
[377868933,1754587847938,-209.27284313,0.00021917,2]
[377868934,1754587847947,-460.0,0.00021917,2]
[377868935,1754587847957,-460.0,0.00021917,2]
[377868936,1754587847967,-461.19915396,0.00021917,2]
[377868937,1754587847977,-460.0,0.00021917,2]
[377868938,1754587847987,-460.0,0.00021917,2]
[377868939,1754587847997,-464.20244395,0.00021917,2]
[377868940,1754587848006,-460.0,0.00021917,2]
[377868941,1754587848016,-460.0,0.00021917,2]
[377868942,1754587848026,-460.0,0.00021917,2]
[377868943,1754587848036,-464.85762574,0.00021917,2]
[377868944,1754587848046,-460.0,0.00021917,2]
[377868945,1754587848056,-460.0,0.00021917,2]
[377868946,1754587848066,-460.0,0.00021917,2]
[377868947,1754587848076,-460.0,0.00021917,2]
[377868948,1754587848086,-461.64284098,0.00021917,2]
[377868949,1754587848096,-465.60621705,0.00021917,2]
[377868950,1754587848105,-437.51482138,0.00021917,2]
[377868951,1754587848117,-460.0,0.00021917,2]
[377868952,1754587848126,-460.0,0.00021917,2]
[377868953,1754587848136,-460.0,0.00021917,2]
[377868954,1754587848145,-460.0,0.00021917,2]
[377868955,1754587848155,-460.0,0.00021917,2]
[377868956,1754587848164,-460.0,0.00021917,2]
[377868957,1754587848174,-460.92503097,0.00021917,2]
[377868958,1754587848183,-460.0,0.00021917,2]
[377868959,1754587848193,-460.0,0.00021917,2]
[377868960,1754587848203,-460.0,0.00021917,2]
[377868961,1754587848212,-460.0,0.00021917,2]
[377868962,1754587848222,-460.0,0.00021917,2]
[377868963,1754587848231,-460.0,0.00021917,2]
[377868964,1754587848242,-460.0,0.00021917,2]
[377868965,1754587848251,-462.07060693,0.00021917,2]
[377868966,1754587848261,-460.0,0.00021917,2]
[377868967,1754587848271,-460.0,0.00021917,2]
[377868968,1754587848280,-460.0,0.00021917,2]
[377868969,1754587848289,-460.0,0.00021917,2]
[377868970,1754587848300,-403.06545512,0.00021917,2]
[377868971,1754587848310,-460.0,0.00021917,2]
[377868972,1754587848462,-460.0,0.00021917,2]
[377868973,1754587848472,-461.87187488,0.00021917,2]
[377868974,1754587848482,-460.0,0.00021917,2]
[377868975,1754587848492,-377.01409365,0.00021917,2]
[377868976,1754587848502,-473.74,0.00021917,2]
[377868977,1754587848512,-460.0,0.00021917,2]
[377868978,1754587848521,-460.0,0.00021917,2]
[377868979,1754587848530,-460.0,0.00021917,2]
[377868980,1754587848540,-460.0,0.00021917,2]
[377868981,1754587848549,-460.0,0.00021917,2]
[377868982,1754587848558,-460.0,0.00021917,2]
[377868983,1754587848569,-460.0,0.00021917,2]
[377868984,1754587848578,-460.0,0.00021917,2]
[377868985,1754587848587,-460.0,0.00021917,2]
[377868986,1754587848597,-460.0,0.00021917,2]
[377868987,1754587848606,-460.0,0.00021917,2]
[377868988,1754587848616,-540.0,0.00021917,2]
[377868989,1754587848627,-460.0,0.00021917,2]
[377868990,1754587848637,-460.0,0.00021917,2]
[377868991,1754587848647,-102.18557332,0.00021917,2]
[377868992,1754587848666,-357.81442668,0.00021917,2]
[377868993,1754587848676,-247.09554421,0.00021917,2]
[377868994,1754587848847,-212.90445579,0.00021917,2]
[377868995,1754587848857,-460.0,0.00021917,2]
[377868996,1754587848868,-421.82481405,0.00021917,2]
[377868997,1754587849304,-38.17518595,0.00021917,2]
[377868998,1754587849313,-460.0,0.00021917,2]
[377868999,1754587849323,-460.0,0.00021917,2]
[377869000,1754587849333,-460.0,0.00021917,2]
[377869001,1754587849342,-460.0,0.00021917,2]
[377869002,1754587849351,-460.0,0.00021917,2]
[377869003,1754587849360,-460.0,0.00021917,2]
[377869004,1754587849371,-460.0,0.00021917,2]
[377869005,1754587849381,-460.0,0.00021917,2]
[377869006,1754587849389,-461.64674416,0.00021917,2]
[377869007,1754587849399,-460.0,0.00021917,2]
[377869008,1754587849408,-462.67758943,0.00021917,2]
[377869009,1754587849417,-460.0,0.00021917,2]
[377869010,1754587849426,-262.28252579,0.00021917,2]
[377869011,1754587849435,-460.0,0.00021917,2]
[377869012,1754587849444,-296.99206066,0.00021917,2]
[377869013,1754587849574,735.46616805,0.00019417,2]